fUST/lending_fUST_20250808
["ID","MTS","AMOUNT","RATE_DAILY","PERIOD"]
[377880055,1754592647521,-903.9,0.00024109,2]
[377880056,1754592647530,-460.0,0.00024109,2]
[377880057,1754592647539,-903.73,0.00024109,2]
[377880058,1754592647549,-460.0,0.00024109,2]
[377880059,1754592647558,-725.42,0.00024109,2]
[377880060,1754592647567,-460.0,0.00024109,2]
[377880061,1754592647575,-792.52,0.00024109,2]
[377880062,1754592647585,-460.0,0.00024109,2]
[377880063,1754592647595,-581.4,0.00024109,2]
[377880064,1754592647604,-206.85879942,0.00024109,2]
[377880065,1754592647613,-570.6,0.00024109,2]
[377880066,1754592647623,-460.0,0.00024109,2]
[377880067,1754592647633,-460.0,0.00024109,2]
[377880068,1754592647642,-460.0,0.00024109,2]
[377880069,1754592647652,-1834.74,0.00024109,2]
[377880070,1754592647662,-825.21,0.00024109,2]
[377880071,1754592647672,-619.62,0.00024109,2]
[377880072,1754592647682,-476.77,0.00024109,2]
[377880073,1754592647691,-1121.19,0.00024109,2]
[377880074,1754592647701,-460.0,0.00024109,2]
[377880075,1754592647711,-460.0,0.00024109,2]
[377880076,1754592647722,-1388.37,0.00024109,2]
[377880077,1754592647732,-460.0,0.00024109,2]
[377880078,1754592647741,-374.46384292,0.00024109,2]
[377880079,1754592647751,-1509.44,0.00024109,2]
[377880080,1754592647760,-1012.9,0.00024109,2]
[377880081,1754592647770,-807.23,0.00024109,2]
[377880082,1754592647779,-585.04,0.00024109,2]
[377880083,1754592647789,-1094.48,0.00024109,2]
[377880084,1754592647798,-460.0,0.00024109,2]
[377880085,1754592647807,-1395.48,0.00024109,2]
[377880086,1754592647816,-498.01,0.00024109,2]
[377880087,1754592647825,-625.27,0.00024109,2]
[377880088,1754592647834,-460.0,0.00024109,2]
[377880089,1754592647844,-460.0,0.00024109,2]
[377880090,1754592647853,-1935.5,0.00024109,2]
[377880091,1754592647862,-1710.3,0.00024109,2]
[377880092,1754592647871,-460.0,0.00024109,2]
[377880093,1754592647881,-460.0,0.00024109,2]
[377880094,1754592647890,-502.64,0.00024109,2]
[377880095,1754592647899,-460.0,0.00024109,2]
[377880096,1754592647908,-460.0,0.00024109,2]
[377880097,1754592647917,-5447.31,0.00024109,2]
[377880098,1754592647927,-481.05,0.00024109,2]
[377880099,1754592647936,-460.0,0.00024109,2]
[377880100,1754592647946,-460.0,0.00024109,2]
[377880101,1754592647955,-2672.21,0.00024109,2]
[377880102,1754592647964,-1766.08,0.00024109,2]
[377880103,1754592647974,-626.17,0.00024109,2]
[377880104,1754592647984,-460.0,0.00024109,2]
[377880105,1754592647993,-645.61,0.00024109,2]
[377880106,1754592648003,-460.0,0.00024109,2]
[377880107,1754592648012,-1285.94,0.00024109,2]
[377880108,1754592648022,-460.0,0.00024109,2]
[377880109,1754592648032,-460.0,0.00024109,2]
[377880110,1754592648041,-460.0,0.00024109,2]
[377880111,1754592648051,-460.0,0.00024109,2]
[377880112,1754592648063,-630.52,0.00024109,2]
[377880113,1754592648073,-578.98,0.00024109,2]
[377880114,1754592648083,-460.0,0.00024109,2]
[377880115,1754592648092,-1193.89,0.00024109,2]
[377880116,1754592648102,-544.89,0.00024109,2]
[377880117,1754592648113,-910.64,0.00024109,2]
[377880118,1754592648123,-445.12473476,0.00024109,2]
[377880119,1754592648233,-286.95526524,0.00024109,2]
[377880120,1754592648244,-2197.76,0.00024109,2]
[377880121,1754592648254,-973.45,0.00024109,2]
[377880122,1754592648264,-151.0,0.00024139,2]
[377880123,1754592648273,-152.30336736,0.00024139,2]
[377880124,1754592648283,-151.0,0.00024139,2]
[377880125,1754592648292,-151.0,0.00024139,2]
[377880126,1754592648302,-151.0,0.00024139,2]
[377880127,1754592648311,-151.0,0.00024139,2]
[377880128,1754592648321,-202.97876133,0.00024139,2]
[377880129,1754592648331,-151.0,0.00024139,2]
[377880130,1754592648340,-151.0,0.00024139,2]
[377880131,1754592648350,-151.0,0.00024139,2]
[377880132,1754592648360,-151.0,0.00024139,2]
[377880133,1754592648369,-151.0,0.00024139,2]
[377880134,1754592648379,-203.15714978,0.00024139,2]
[377880135,1754592648388,-151.0,0.00024139,2]
[377880136,1754592648398,-151.0,0.00024139,2]
[377880137,1754592648407,-151.80936648,0.00024139,2]
[377880138,1754592648417,-151.29235177,0.00024139,2]
[377880139,1754592648426,-151.14535849,0.00024139,2]
[377880140,1754592648436,-500.0,0.00024139,2]
[377880141,1754592648445,-151.0,0.00024139,2]
[377880142,1754592648455,-2500.0,0.00024164,2]
[377880143,1754592648465,-160.0,0.00024182,2]
[377880144,1754592648474,-1454.87048646,0.00024217,2]
[377880145,1754592648485,-4834.0,0.0002423,2]
[377880146,1754592648495,-1477.09867929,0.0002427,2]
[377880147,1754592648504,-982.712,0.0002438,2]
[377880148,1754592648514,-636.0,0.0002438,2]
[377880149,1754592648523,-2149.0,0.0002438,2]
[377880150,1754592648533,-151.0,0.00024383,7]
[377880151,1754592648542,-151.0,0.00024383,7]
[377880152,1754592648552,-460.0,0.00024383,2]
[377880153,1754592648562,-903.9,0.00024383,2]
[377880154,1754592648572,-460.0,0.00024383,2]
[377880155,1754592648581,-903.73,0.00024383,2]
[377880156,1754592648590,-460.0,0.00024383,2]
[377880157,1754592648600,-725.42,0.00024383,2]
[377880158,1754592648610,-161.93458878,0.00024383,2]
[377880159,1754592648619,-792.52,0.00024383,2]
[377880160,1754592648629,-460.0,0.00024383,2]
[377880161,1754592648639,-581.4,0.00024383,2]
[377880162,1754592648648,-570.6,0.00024383,2]
[377880163,1754592648657,-232.83950658,0.00024383,2]
[377880164,1754592648667,-460.0,0.00024383,2]
[377880165,1754592648676,-460.0,0.00024383,2]
[377880166,1754592648686,-1834.74,0.00024383,2]
[377880167,1754592648695,-825.21,0.00024383,2]
[377880168,1754592648705,-619.62,0.00024383,2]
[377880169,1754592648714,-476.77,0.00024383,2]
[377880170,1754592648723,-1121.19,0.00024383,2]
[377880171,1754592648733,-460.0,0.00024383,2]
[377880172,1754592648742,-460.0,0.00024383,2]
[377880173,1754592648751,-1388.37,0.00024383,2]
[377880174,1754592648760,-460.0,0.00024383,2]
[377880175,1754592648770,-1509.44,0.00024383,2]
[377880176,1754592648779,-1012.9,0.00024383,2]
[377880177,1754592648789,-807.23,0.00024383,2]
[377880178,1754592648798,-585.04,0.00024383,2]
[377880179,1754592648807,-1094.48,0.00024383,2]
[377880180,1754592648816,-218.93126947,0.00024383,2]
[377880181,1754592648825,-1395.48,0.00024383,2]
[377880182,1754592648834,-498.01,0.00024383,2]
[377880183,1754592648844,-625.27,0.00024383,2]
[377880184,1754592648853,-460.0,0.00024383,2]
[377880185,1754592648863,-460.0,0.00024383,2]
[377880186,1754592648873,-1935.5,0.00024383,2]
[377880187,1754592648882,-1710.3,0.00024383,2]
[377880188,1754592648891,-309.42697085,0.00024383,2]
[377880189,1754592648901,-460.0,0.00024383,2]
[377880190,1754592648911,-502.64,0.00024383,2]
[377880191,1754592648920,-460.0,0.00024383,2]
[377880192,1754592648930,-460.0,0.00024383,2]
[377880193,1754592648939,-5447.31,0.00024383,2]
[377880194,1754592648949,-481.05,0.00024383,2]
[377880195,1754592648958,-460.0,0.00024383,2]
[377880196,1754592648968,-460.0,0.00024383,2]
[377880197,1754592648978,-2672.21,0.00024383,2]
[377880198,1754592648988,-1766.08,0.00024383,2]
[377880199,1754592648997,-626.17,0.00024383,2]
[377880200,1754592649007,-460.0,0.00024383,2]
[377880201,1754592649016,-645.61,0.00024383,2]
[377880202,1754592649026,-432.28131888,0.00024383,2]
[377880203,1754592649035,-610.44721502,0.00024383,2]
[377880204,1754592649231,-460.0,0.00021917,2]
[377880205,1754592649242,-151.0,0.00024139,2]
[377880206,1754592649252,-675.49278498,0.00024383,2]
[377880207,1754592649263,-460.0,0.00024383,2]
[377880208,1754592649272,-460.0,0.00024383,2]
[377880209,1754592649281,-460.0,0.00024383,2]
[377880210,1754592649291,-460.0,0.00024383,2]
[377880211,1754592649300,-630.52,0.00024383,2]
[377880212,1754592649310,-578.98,0.00024383,2]
[377880213,1754592649319,-331.11179119,0.00024383,2]
[377880214,1754592649328,-1193.89,0.00024383,2]
[377880215,1754592649338,-544.89,0.00024383,2]
[377880216,1754592649348,-910.64,0.00024383,2]
[377880217,1754592649359,-732.08,0.00024383,2]
[377880218,1754592649369,-621.97273355,0.00024383,2]
[377880219,1754592649512,-250.0,0.0002438,2]
[377880220,1754592649522,-1575.78726645,0.00024383,2]
[377880221,1754592649532,-973.45,0.00024383,2]
[377880222,1754592649542,-151.0,0.00024413,2]
[377880223,1754592649552,-151.0,0.00024413,2]
[377880224,1754592649562,-151.0,0.00024413,2]
[377880225,1754592649572,-151.0,0.00024413,2]
[377880226,1754592649582,-151.0,0.00024413,2]
[377880227,1754592649592,-283.71364255,0.00024413,2]
[377880228,1754592649602,-500.0,0.00024413,2]
[377880229,1754592649611,-2000.0,0.00024416,2]
[377880230,1754592649621,-2000.0,0.00024416,2]
[377880231,1754592649631,-201.699796,0.00024431,2]
[377880232,1754592649640,-285.00523529,0.00024466,13]
[377880233,1754592649649,-500.0,0.0002447,2]
[377880234,1754592649659,-500.0,0.0002447,2]
[377880235,1754592649668,-500.0,0.0002447,2]
[377880236,1754592649678,-500.0,0.0002447,2]
[377880237,1754592649687,-500.0,0.0002447,2]
[377880238,1754592649696,-307.77,0.00024505,2]
[377880239,1754592649706,-4834.0,0.00024507,2]
[377880240,1754592649716,-682.765627,0.00024635,2]
[377880241,1754592649726,-151.0,0.0002465,7]
[377880242,1754592649736,-151.0,0.0002465,7]
[377880243,1754592649745,-215.31718835,0.0002465,7]
[377880244,1754592649754,-160.0,0.0002465,7]
[377880245,1754592649764,-160.0,0.0002465,7]
[377880246,1754592649773,-160.0,0.0002465,7]
[377880247,1754592649783,-312.16666667,0.0002465,7]
[377880248,1754592649793,-160.0,0.0002465,7]
[377880249,1754592649802,-160.0,0.0002465,7]
[377880250,1754592649812,-842.63596909,0.0002465,7]
[377880251,1754592649822,-461.3695942,0.0002465,7]
[377880252,1754592649832,-527.57568145,0.0002465,7]
[377880253,1754592649841,-216.52217562,0.0002465,7]
[377880254,1754592649851,-160.0,0.0002465,7]
[377880255,1754592649861,-231.83071243,0.0002465,7]
[377880256,1754592649870,-6647.77421116,0.0002465,7]
[377880257,1754592649882,-6013.13018297,0.0002465,7]
[377880258,1754592649892,-429.25990695,0.00024657,2]
[377880261,1754592872333,1019.92616786,0.0002148,2]
[377880262,1754592956413,-167.23255564,0.00021916,2]
[377880263,1754592956436,-489.67580029,0.00021916,2]
[377880264,1754592956460,-1200.0,0.00021916,2]
[377880265,1754592956484,-3787.96728801,0.00021917,2]
[377880266,1754592956508,-460.0,0.00021917,2]
[377880267,1754592956533,-1179.96,0.00021917,2]
[377880268,1754592956555,-460.0,0.00021917,2]
[377880269,1754592956579,-460.0,0.00021917,2]
[377880270,1754592956602,-460.0,0.00021917,2]
[377880271,1754592956625,-460.0,0.00021917,2]
[377880272,1754592956646,-460.0,0.00021917,2]
[377880273,1754592956668,-415.16435606,0.00021917,2]
[377880274,1754592978401,-300.0,0.00021916,2]
[377880275,1754592978423,-147.58187342,0.00021917,2]
[377880276,1754592978445,-510.36,0.00021917,2]
[377880277,1754592978469,-460.0,0.00021917,2]
[377880278,1754592978491,-460.0,0.00021917,2]
[377880279,1754592978514,-460.0,0.00021917,2]
[377880280,1754592978537,-460.0,0.00021917,2]
[377880281,1754592978558,-460.0,0.00021917,2]
[377880282,1754592978580,-460.0,0.00021917,2]
[377880283,1754592978603,-460.0,0.00021917,2]
[377880284,1754592978626,-460.0,0.00021917,2]
[377880285,1754592978649,-460.0,0.00021917,2]
[377880286,1754592978670,-460.0,0.00021917,2]
[377880287,1754592978694,-460.0,0.00021917,2]
[377880288,1754592978716,-460.0,0.00021917,2]
[377880289,1754592978738,-460.0,0.00021917,2]
[377880290,1754592978761,-569.15,0.00021917,2]
[377880291,1754592978783,-460.0,0.00021917,2]
[377880292,1754592978806,-1180.63,0.00021917,2]
[377880293,1754592978828,-460.0,0.00021917,2]
[377880294,1754592978850,-392.27812658,0.00021917,2]
[377880295,1754593008455,176.150534,0.00021365,2]
[377880296,1754593027050,-300.0,0.00021916,2]
[377880297,1754593027073,-67.72187342,0.00021917,2]
[377880298,1754593027099,-460.0,0.00021917,2]
[377880299,1754593027122,-746.18,0.00021917,2]
[377880300,1754593027148,-460.0,0.00021917,2]
[377880301,1754593027172,-460.0,0.00021917,2]
[377880302,1754593027196,-1670.13,0.00021917,2]
[377880303,1754593027222,-460.0,0.00021917,2]
[377880304,1754593027245,-1033.71,0.00021917,2]
[377880305,1754593027269,-803.72,0.00021917,2]
[377880306,1754593027293,-460.0,0.00021917,2]
[377880307,1754593027316,-460.0,0.00021917,2]
[377880308,1754593027338,-460.0,0.00021917,2]
[377880309,1754593027363,-460.0,0.00021917,2]
[377880310,1754593027385,-460.0,0.00021917,2]
[377880311,1754593027407,-460.0,0.00021917,2]
[377880312,1754593027432,-567.85,0.00021917,2]
[377880313,1754593027454,-460.0,0.00021917,2]
[377880314,1754593027476,-460.0,0.00021917,2]
[377880315,1754593027499,-460.0,0.00021917,2]
[377880316,1754593027521,-460.0,0.00021917,2]
[377880317,1754593027544,-460.0,0.00021917,2]
[377880318,1754593027566,-460.0,0.00021917,2]
[377880319,1754593027589,-460.0,0.00021917,2]
[377880320,1754593027791,-460.0,0.00021917,2]
[377880321,1754593027816,-679.88,0.00021917,2]
[377880322,1754593027840,-649.47,0.00021917,2]
[377880323,1754593027862,-460.0,0.00021917,2]
[377880324,1754593027884,-460.0,0.00021917,2]
[377880325,1754593027908,-460.0,0.00021917,2]
[377880326,1754593027930,-460.0,0.00021917,2]
[377880327,1754593027952,-460.0,0.00021917,2]
[377880328,1754593027975,-671.07,0.00021917,2]
[377880329,1754593027997,-460.0,0.00021917,2]
[377880330,1754593028021,-844.38,0.00021917,2]
[377880331,1754593028044,-460.0,0.00021917,2]
[377880332,1754593028066,-460.0,0.00021917,2]
[377880333,1754593028089,-5.88812658,0.00021917,2]
[377880334,1754593254601,216.371872,0.00021215,2]
[377880340,1754593538655,590.526249,0.00013699,2]
[377880341,1754593538862,590.526249,0.00020187,2]
[377880344,1754593565190,-160.0,0.00021817,2]
[377880345,1754593565214,-735.0,0.00021916,2]
[377880347,1754593582224,430.49353167,0.00019817,2]
[377880349,1754593664205,177.61227808,0.00021259,2]
[377880355,1754593766597,24900.0,0.0002107,2]
[377880404,1754593832575,-1200.0,0.00021915,2]
[377880406,1754593832584,-1200.0,0.00021916,2]
[377880408,1754593832594,-367.7119435,0.00021916,2]
[377880410,1754593832603,-500.0,0.00021916,2]
[377880412,1754593832613,-500.0,0.00021916,2]
[377880414,1754593832622,-20.25534451,0.00021916,2]
[377880549,1754593838487,-288.12,0.00021916,2]
[377880550,1754593838546,-191.62465549,0.00021916,2]
[377880551,1754593838557,-314.12929479,0.00021916,2]
[377880552,1754593838652,-185.87070521,0.00021916,2]
[377880553,1754593838661,-500.0,0.00021916,2]
[377880554,1754593838671,-500.0,0.00021916,2]
[377880555,1754593838680,-500.0,0.00021916,2]
[377880556,1754593838689,-500.0,0.00021916,2]
[377880557,1754593838698,-500.0,0.00021916,2]
[377880558,1754593838707,-500.0,0.00021916,2]
[377880559,1754593838716,-500.0,0.00021916,2]
[377880560,1754593838726,-500.0,0.00021916,2]
[377880561,1754593838735,-500.0,0.00021916,2]
[377880562,1754593838746,-500.0,0.00021916,2]
[377880563,1754593838755,-500.0,0.00021916,2]
[377880564,1754593838764,-500.0,0.00021916,2]
[377880565,1754593838775,-328.40642382,0.00021916,2]
[377880566,1754593838788,-500.0,0.00021916,2]
[377880567,1754593838797,-500.0,0.00021916,2]
[377880568,1754593838806,-500.0,0.00021916,2]
[377880569,1754593838816,-500.0,0.00021916,2]
[377880570,1754593838825,-500.0,0.00021916,2]
[377880571,1754593838834,-500.0,0.00021916,2]
[377880572,1754593838843,-500.0,0.00021916,2]
[377880573,1754593838852,-500.0,0.00021916,2]
[377880574,1754593838861,-500.0,0.00021916,2]
[377880575,1754593838871,-200.0,0.00021916,2]
[377880576,1754593838881,-500.0,0.00021916,2]
[377880577,1754593838890,-500.0,0.00021917,2]
[377880578,1754593838899,-460.0,0.00021917,2]
[377880579,1754593838914,-460.0,0.00021917,2]
[377880580,1754593838925,-294.37271199,0.00021917,2]
[377880581,1754593838933,-460.0,0.00021917,2]
[377880582,1754593838943,-460.0,0.00021917,2]
[377880583,1754593838952,-460.0,0.00021917,2]
[377880584,1754593838961,-315.72091378,0.00021917,2]
[377880585,1754593838971,-460.0,0.00021917,2]
[377880586,1754593838981,-460.0,0.00021917,2]
[377880587,1754593838990,-460.0,0.00021917,2]
[377880588,1754593838999,-460.0,0.00021917,2]
[377880589,1754593839008,-460.0,0.00021917,2]
[377880590,1754593839018,-460.0,0.00021917,2]
[377880591,1754593839027,-460.0,0.00021917,2]
[377880592,1754593839035,-460.0,0.00021917,2]
[377880593,1754593839045,-809.2,0.00021917,2]
[377880594,1754593839054,-465.59172773,0.00021917,2]
[377880595,1754593839063,-460.0,0.00021917,2]
[377880596,1754593839073,-911.81,0.00021917,2]
[377880597,1754593839083,-460.0,0.00021917,2]
[377880598,1754593839092,-376.87757587,0.00021917,2]
[377880599,1754593839101,-460.0,0.00021917,2]
[377880600,1754593839111,-460.0,0.00021917,2]
[377880601,1754593839119,-460.0,0.00021917,2]
[377880602,1754593839129,-311.45030657,0.00021917,2]
[377880603,1754593839138,-460.0,0.00021917,2]
[377880604,1754593839147,-460.0,0.00021917,2]
[377880605,1754593839156,-460.0,0.00021917,2]
[377880606,1754593839165,-593.79,0.00021917,2]
[377880607,1754593839174,-460.0,0.00021917,2]
[377880608,1754593839184,-460.0,0.00021917,2]
[377880609,1754593839193,-460.0,0.00021917,2]
[377880610,1754593839202,-460.0,0.00021917,2]
[377880611,1754593839210,-460.0,0.00021917,2]
[377880612,1754593839220,-460.0,0.00021917,2]
[377880613,1754593839230,-460.0,0.00021917,2]
[377880614,1754593839239,-460.0,0.00021917,2]
[377880615,1754593839249,-1166.29,0.00021917,2]
[377880616,1754593839258,-150.12650732,0.00021917,2]
[377880617,1754593839267,-460.0,0.00021917,2]
[377880618,1754593839275,-465.65240056,0.00021917,2]
[377880619,1754593839285,-460.0,0.00021917,2]
[377880620,1754593839294,-460.0,0.00021917,2]
[377880621,1754593839303,-460.0,0.00021917,2]
[377880622,1754593839312,-460.0,0.00021917,2]
[377880623,1754593839322,-460.0,0.00021917,2]
[377880624,1754593839331,-460.0,0.00021917,2]
[377880625,1754593839340,-460.0,0.00021917,2]
[377880626,1754593839350,-460.0,0.00021917,2]
[377880627,1754593839359,-460.0,0.00021917,2]
[377880628,1754593839369,-572.34423987,0.00021917,2]
[377880629,1754593839378,-460.0,0.00021917,2]
[377880630,1754593839388,-460.0,0.00021917,2]
[377880631,1754593839397,-460.0,0.00021917,2]
[377880632,1754593839407,-460.0,0.00021917,2]
[377880633,1754593839416,-593.17173863,0.00021917,2]
[377880634,1754593839425,-460.0,0.00021917,2]
[377880635,1754593839438,-460.0,0.00021917,2]
[377880636,1754593839447,-473.40027041,0.00021917,2]
[377880637,1754593839456,-460.0,0.00021917,2]
[377880638,1754593839466,-460.0,0.00021917,2]
[377880639,1754593839475,-460.0,0.00021917,2]
[377880640,1754593839484,-460.0,0.00021917,2]
[377880641,1754593839494,-460.0,0.00021917,2]
[377880642,1754593839503,-460.0,0.00021917,2]
[377880643,1754593839514,-460.0,0.00021917,2]
[377880644,1754593839524,-460.0,0.00021917,2]
[377880645,1754593839534,-542.83,0.00021917,2]
[377880646,1754593839543,-463.07502882,0.00021917,2]
[377880647,1754593839553,-460.0,0.00021917,2]
[377880648,1754593839562,-460.0,0.00021917,2]
[377880649,1754593839572,-460.0,0.00021917,2]
[377880650,1754593839581,-460.0,0.00021917,2]
[377880651,1754593839591,-460.0,0.00021917,2]
[377880652,1754593839600,-460.0,0.00021917,2]
[377880653,1754593839610,-460.0,0.00021917,2]
[377880654,1754593839619,-460.0,0.00021917,2]
[377880655,1754593839629,-500.0,0.00021917,2]
[377880656,1754593839639,-460.0,0.00021917,2]
[377880657,1754593839648,-460.0,0.00021917,2]
[377880658,1754593839657,-460.0,0.00021917,2]
[377880659,1754593839675,-460.0,0.00021917,2]
[377880660,1754593839686,-1494.38,0.00021917,2]
[377880661,1754593839696,-460.0,0.00021917,2]
[377880662,1754593839706,-460.0,0.00021917,2]
[377880663,1754593839716,-390.56212957,0.00021917,2]
[377880664,1754593839725,-463.98156226,0.00021917,2]
[377880665,1754593839735,-671.8,0.00021917,2]
[377880666,1754593839744,-460.0,0.00021917,2]
[377880667,1754593839754,-460.0,0.00021917,2]
[377880668,1754593839763,-460.0,0.00021917,2]
[377880669,1754593839774,-479.16,0.00021917,2]
[377880670,1754593839783,-460.0,0.00021917,2]
[377880671,1754593839793,-460.0,0.00021917,2]
[377880672,1754593839803,-598.26,0.00021917,2]
[377880673,1754593839813,-460.0,0.00021917,2]
[377880674,1754593839823,-460.0,0.00021917,2]
[377880675,1754593839832,-460.0,0.00021917,2]
[377880676,1754593839842,-460.0,0.00021917,2]
[377880677,1754593839851,-460.0,0.00021917,2]
[377880678,1754593839861,-460.0,0.00021917,2]
[377880679,1754593839876,-460.0,0.00021917,2]
[377880680,1754593839889,-1208.63599293,0.00021917,2]
[377880681,1754593839898,-460.0,0.00021917,2]
[377880682,1754593839908,-460.0,0.00021917,2]
[377880683,1754593839918,-820.72,0.00021917,2]
[377880684,1754593839928,-460.0,0.00021917,2]
[377880685,1754593839938,-460.0,0.00021917,2]
[377880686,1754593839947,-460.0,0.00021917,2]
[377880687,1754593839957,-460.0,0.00021917,2]
[377880688,1754593839967,-460.0,0.00021917,2]
[377880689,1754593839976,-460.0,0.00021917,2]
[377880690,1754593839986,-460.0,0.00021917,2]
[377880692,1754593839996,-460.0,0.00021917,2]
[377880693,1754593840006,-460.0,0.00021917,2]
[377880695,1754593840015,-460.0,0.00021917,2]
[377880696,1754593840025,-460.0,0.00021917,2]
[377880698,1754593840034,-634.93,0.00021917,2]
[377880699,1754593840043,-460.0,0.00021917,2]
[377880701,1754593840053,-460.0,0.00021917,2]
[377880702,1754593840065,-478.91111412,0.00021917,2]
[377880703,1754593840074,-641.76,0.00021917,2]
[377880704,1754593840084,-460.0,0.00021917,2]
[377880705,1754593840094,-460.0,0.00021917,2]
[377880706,1754593840104,-460.0,0.00021917,2]
[377880707,1754593840115,-460.0,0.00021917,2]
[377880708,1754593840125,-915.78,0.00021917,2]
[377880709,1754593840135,-460.0,0.00021917,2]
[377880710,1754593840145,-460.0,0.00021917,2]
[377880711,1754593840155,-460.0,0.00021917,2]
[377880712,1754593840166,-966.26,0.00021917,2]
[377880713,1754593840176,-460.0,0.00021917,2]
[377880714,1754593840186,-718.07,0.00021917,2]
[377880715,1754593840196,-1628.99,0.00021917,2]
[377880716,1754593840205,-460.0,0.00021917,2]
[377880717,1754593840215,-460.0,0.00021917,2]
[377880718,1754593840227,-1021.36,0.00021917,2]
[377880719,1754593840237,-460.0,0.00021917,2]
[377880720,1754593840246,-460.0,0.00021917,2]
[377880721,1754593840256,-513.46,0.00021917,2]
[377880722,1754593840265,-460.0,0.00021917,2]
[377880723,1754593840275,-460.0,0.00021917,2]
[377880724,1754593840284,-460.0,0.00021917,2]
[377880725,1754593840294,-460.0,0.00021917,2]
[377880726,1754593840304,-460.0,0.00021917,2]
[377880727,1754593840314,-460.0,0.00021917,2]
[377880728,1754593840323,-460.0,0.00021917,2]
[377880729,1754593840334,-460.0,0.00021917,2]
[377880731,1754593840343,-460.0,0.00021917,2]
[377880732,1754593840352,-460.0,0.00021917,2]
[377880733,1754593840363,-460.0,0.00021917,2]
[377880734,1754593840372,-296.12390763,0.00021917,2]
[377880735,1754593840382,-460.0,0.00021917,2]
[377880736,1754593840392,-460.0,0.00021917,2]
[377880737,1754593840402,-1789.34,0.00021917,2]
[377880738,1754593840412,-460.0,0.00021917,2]
[377880739,1754593840422,-460.0,0.00021917,2]
[377880740,1754593840433,-350.24697782,0.00021917,2]
[377880741,1754593840443,-1510.96,0.00021917,2]
[377880742,1754593840453,-460.0,0.00021917,2]
[377880743,1754593840463,-460.0,0.00021917,2]
[377880744,1754593840472,-4440.87,0.00021917,2]
[377880745,1754593840482,-460.0,0.00021917,2]
[377880746,1754593840493,-460.0,0.00021917,2]
[377880747,1754593840502,-216.67817786,0.00021917,2]
[377880748,1754593840512,-460.0,0.00021917,2]
[377880749,1754593840522,-460.0,0.00021917,2]
[377880750,1754593840531,-460.0,0.00021917,2]
[377880751,1754593840541,-460.0,0.00021917,2]
[377880752,1754593840550,-460.0,0.00021917,2]
[377880753,1754593840560,-513.46,0.00021917,2]
[377880754,1754593840570,-460.0,0.00021917,2]
[377880755,1754593840579,-460.0,0.00021917,2]
[377880756,1754593840589,-460.0,0.00021917,2]
[377880757,1754593840599,-460.0,0.00021917,2]
[377880758,1754593840608,-460.0,0.00021917,2]
[377880759,1754593840618,-806.84,0.00021917,2]
[377880760,1754593840627,-460.0,0.00021917,2]
[377880761,1754593840636,-460.0,0.00021917,2]
[377880762,1754593840646,-460.0,0.00021917,2]